[Event "Late-Titled-Tuesday-Blitz-February-20-2024"]
[Site "Chess.com"]
[Date "2024.02.20"]
[Round "3"]
[White "mjelcic"]
[Black "a_kandil"]
[Result "1-0"]
[WhiteElo "2242"]
[BlackElo "2425"]
[TimeControl "180+1"]
[EndTime "14:24:21 PST"]
[Termination "mjelcic won by resignation"]

1. d4 {[%clk 0:03:00.9]} 1... Nf6 {[%clk 0:02:59.9]} 2. c4 {[%clk 0:02:57.2]}
2... e6 {[%clk 0:03:00.2]} 3. Nc3 {[%clk 0:02:57.3]} 3... Bb4 {[%clk 0:03:00.8]}
4. Bd2 {[%clk 0:02:58]} 4... O-O {[%clk 0:03:00.3]} 5. Nf3 {[%clk 0:02:58.2]}
5... d5 {[%clk 0:02:54.1]} 6. e3 {[%clk 0:02:58]} 6... b6 {[%clk 0:02:53.9]} 7.
cxd5 {[%clk 0:02:52.3]} 7... exd5 {[%clk 0:02:54.8]} 8. Ne5 {[%clk 0:02:48.2]}
8... Bb7 {[%clk 0:02:54.6]} 9. Bd3 {[%clk 0:02:47.8]} 9... c5 {[%clk 0:02:54.7]}
10. O-O {[%clk 0:02:43.8]} 10... Nc6 {[%clk 0:02:52.7]} 11. Nxc6 {[%clk
0:02:39.7]} 11... Bxc6 {[%clk 0:02:53.6]} 12. Ne2 {[%clk 0:02:34.1]} 12... Bxd2
{[%clk 0:02:52.8]} 13. Qxd2 {[%clk 0:02:35]} 13... c4 {[%clk 0:02:49.8]} 14. Bc2
{[%clk 0:02:34.5]} 14... b5 {[%clk 0:02:50.1]} 15. a3 {[%clk 0:02:34.6]} 15...
a5 {[%clk 0:02:49.7]} 16. Rac1 {[%clk 0:02:30]} 16... Qe7 {[%clk 0:02:49.8]} 17.
Bb1 {[%clk 0:02:29.7]} 17... b4 {[%clk 0:02:50]} 18. axb4 {[%clk 0:02:25.7]}
18... axb4 {[%clk 0:02:50.9]} 19. Qc2 {[%clk 0:02:26]} 19... Ba4 {[%clk
0:02:46.7]} 20. Qd2 {[%clk 0:02:24.6]} 20... Rfc8 {[%clk 0:02:42.8]} 21. Nf4
{[%clk 0:02:21]} 21... Bb5 {[%clk 0:02:41]} 22. Rfe1 {[%clk 0:02:17.7]} 22...
Rc7 {[%clk 0:02:21.2]} 23. Qc2 {[%clk 0:02:17.6]} 23... g6 {[%clk 0:02:07]} 24.
Qe2 {[%clk 0:02:14.2]} 24... Rb8 {[%clk 0:02:04.3]} 25. Qf3 {[%clk 0:02:13.6]}
25... Bc6 {[%clk 0:01:58.2]} 26. h4 {[%clk 0:02:08]} 26... Ne4 {[%clk
0:01:46.6]} 27. h5 {[%clk 0:02:07.8]} 27... c3 {[%clk 0:01:45.1]} 28. bxc3
{[%clk 0:01:58.3]} 28... bxc3 {[%clk 0:01:46]} 29. Bxe4 {[%clk 0:01:48.2]} 29...
dxe4 {[%clk 0:01:45.5]} 30. Qg3 {[%clk 0:01:47.2]} 30... Ba4 {[%clk 0:01:40.1]}
31. Nd5 {[%clk 0:01:39.3]} 31... Qd7 {[%clk 0:01:22.4]} 32. Nf6+ {[%clk
0:01:38.8]} 1-0

[Event "Late-Titled-Tuesday-Blitz-February-20-2024"]
[Site "Chess.com"]
[Date "2024.02.20"]
[Round "3"]
[White "maurovargas01"]
[Black "Happy1712Drummer"]
[Result "0-1"]
[WhiteElo "1869"]
[BlackElo "2353"]
[TimeControl "180+1"]
[EndTime "14:24:29 PST"]
[Termination "Happy1712Drummer won on time"]

1. e4 {[%clk 0:00:27.6]} 1... e6 {[%clk 0:03:00.9]} 2. f4 {[%clk 0:00:26.4]}
2... d5 {[%clk 0:02:59.2]} 3. Nc3 {[%clk 0:00:27.3]} 3... Nf6 {[%clk 0:02:55.1]}
4. e5 {[%clk 0:00:27.1]} 4... Nfd7 {[%clk 0:02:54.7]} 5. Nf3 {[%clk 0:00:25.8]}
5... c5 {[%clk 0:02:53.6]} 6. d3 {[%clk 0:00:25.9]} 6... Nc6 {[%clk 0:02:52]} 7.
g4 {[%clk 0:00:24.2]} 7... h5 {[%clk 0:02:51.1]} 8. g5 {[%clk 0:00:23.3]} 8...
g6 {[%clk 0:02:50.7]} 9. h4 {[%clk 0:00:22.8]} 9... Ne7 {[%clk 0:02:50.3]} 10.
Bh3 {[%clk 0:00:21.3]} 10... Nb8 {[%clk 0:02:49]} 11. O-O {[%clk 0:00:20.6]}
11... Nbc6 {[%clk 0:02:47.2]} 12. Nb5 {[%clk 0:00:19]} 12... Nf5 {[%clk
0:02:45.7]} 13. Bxf5 {[%clk 0:00:18.6]} 13... exf5 {[%clk 0:02:46.6]} 14. Re1
{[%clk 0:00:16.6]} 14... Be6 {[%clk 0:02:46.4]} 15. Nd6+ {[%clk 0:00:15.7]}
15... Bxd6 {[%clk 0:02:42.7]} 16. exd6 {[%clk 0:00:16.6]} 16... Qxd6 {[%clk
0:02:42.9]} 17. Qe2 {[%clk 0:00:16.5]} 17... O-O {[%clk 0:02:39.6]} 18. Bd2
{[%clk 0:00:11.4]} 18... d4 {[%clk 0:02:29.2]} 19. Qg2 {[%clk 0:00:06.1]} 19...
Bd5 {[%clk 0:02:24.6]} 20. Qg3 {[%clk 0:00:05.2]} 20... Rae8 {[%clk 0:02:19.3]}
0-1

[Event "Late-Titled-Tuesday-Blitz-February-20-2024"]
[Site "Chess.com"]
[Date "2024.02.20"]
[Round "3"]
[White "boguszp"]
[Black "Maestro1986"]
[Result "0-1"]
[WhiteElo "2011"]
[BlackElo "2505"]
[TimeControl "180+1"]
[EndTime "14:24:50 PST"]
[Termination "Maestro1986 won by resignation"]

1. d4 {[%clk 0:03:00.9]} 1... Nf6 {[%clk 0:02:58.8]} 2. Bf4 {[%clk 0:02:59.6]}
2... e6 {[%clk 0:02:59.2]} 3. Nc3 {[%clk 0:02:58.3]} 3... b6 {[%clk 0:02:59.6]}
4. e4 {[%clk 0:02:58.8]} 4... Bb4 {[%clk 0:02:58.8]} 5. f3 {[%clk 0:02:52.9]}
5... O-O {[%clk 0:02:56.5]} 6. Qd2 {[%clk 0:02:52]} 6... d5 {[%clk 0:02:55.4]}
7. Bg5 {[%clk 0:02:43.8]} 7... dxe4 {[%clk 0:02:52.9]} 8. fxe4 {[%clk
0:02:42.3]} 8... Nxe4 {[%clk 0:02:41]} 9. Bxd8 {[%clk 0:02:41.6]} 9... Nxd2
{[%clk 0:02:39.8]} 10. Bxc7 {[%clk 0:02:33.6]} 10... Ne4 {[%clk 0:02:32.4]} 11.
Ne2 {[%clk 0:02:22.9]} 11... Ba6 {[%clk 0:02:29.7]} 12. Bxb8 {[%clk 0:02:08.7]}
12... Bxe2 {[%clk 0:02:23.1]} 13. Bxe2 {[%clk 0:01:59.2]} 13... Raxb8 {[%clk
0:02:10.7]} 14. O-O {[%clk 0:01:57.8]} 14... Nxc3 {[%clk 0:02:09.2]} 15. bxc3
{[%clk 0:01:57.3]} 15... Bxc3 {[%clk 0:02:10.1]} 16. Rad1 {[%clk 0:01:56.3]}
16... Rbd8 {[%clk 0:02:08.4]} 17. Rd3 {[%clk 0:01:53.1]} 17... Bxd4+ {[%clk
0:02:07.2]} 18. Kh1 {[%clk 0:01:48.2]} 18... Bc5 {[%clk 0:02:06.1]} 19. Rdf3
{[%clk 0:01:42.1]} 19... g6 {[%clk 0:01:58.2]} 20. Bd3 {[%clk 0:01:38.5]} 20...
Kg7 {[%clk 0:01:57.9]} 21. h4 {[%clk 0:01:35.5]} 21... f5 {[%clk 0:01:57.7]} 22.
Re1 {[%clk 0:01:25.5]} 22... Rfe8 {[%clk 0:01:54.7]} 23. Bc4 {[%clk 0:01:13.3]}
23... Rd4 {[%clk 0:01:48.4]} 24. Rxe6 {[%clk 0:00:57.3]} 24... Red8 {[%clk
0:01:32.7]} 25. Re7+ {[%clk 0:00:51.7]} 25... Bxe7 {[%clk 0:01:31.8]} 26. Re3
{[%clk 0:00:50.1]} 26... Rxh4+ {[%clk 0:01:30.3]} 27. Kg1 {[%clk 0:00:48.6]}
27... Bc5 {[%clk 0:01:30.3]} 0-1

[Event "Late-Titled-Tuesday-Blitz-February-20-2024"]
[Site "Chess.com"]
[Date "2024.02.20"]
[Round "3"]
[White "Boundless_Strike"]
[Black "Mikhal867"]
[Result "1-0"]
[WhiteElo "2640"]
[BlackElo "2431"]
[TimeControl "180+1"]
[EndTime "14:24:52 PST"]
[Termination "Boundless_Strike won on time"]

1. d4 {[%clk 0:02:56.7]} 1... Nf6 {[%clk 0:02:49.3]} 2. Nc3 {[%clk 0:02:56.3]}
2... g6 {[%clk 0:02:46.1]} 3. e4 {[%clk 0:02:56.5]} 3... d6 {[%clk 0:02:46.4]}
4. Bg5 {[%clk 0:02:57.1]} 4... Bg7 {[%clk 0:02:46.2]} 5. e5 {[%clk 0:02:57.7]}
5... dxe5 {[%clk 0:02:45.5]} 6. dxe5 {[%clk 0:02:58.6]} 6... Qxd1+ {[%clk
0:02:42.8]} 7. Rxd1 {[%clk 0:02:59.5]} 7... Ng4 {[%clk 0:02:40.5]} 8. h3 {[%clk
0:02:59.7]} 8... Nxe5 {[%clk 0:02:37.6]} 9. Nd5 {[%clk 0:03:00]} 9... O-O {[%clk
0:01:45.3]} 10. Nxc7 {[%clk 0:02:58.6]} 10... Bf5 {[%clk 0:01:24.3]} 11. Nxa8
{[%clk 0:02:57.7]} 11... Nbc6 {[%clk 0:01:21.6]} 12. Nc7 {[%clk 0:02:57.9]}
12... Nb4 {[%clk 0:01:19.2]} 13. Nd5 {[%clk 0:02:51.5]} 13... Nxc2+ {[%clk
0:01:16.7]} 14. Kd2 {[%clk 0:02:51.9]} 14... Nc6 {[%clk 0:00:29.9]} 15. g4
{[%clk 0:02:41.6]} 15... Be4 {[%clk 0:00:27.9]} 16. f3 {[%clk 0:02:41.7]} 16...
Bxd5 {[%clk 0:00:25.7]} 17. Kxc2 {[%clk 0:02:42.2]} 17... Nb4+ {[%clk
0:00:22.6]} 18. Kb1 {[%clk 0:02:42.1]} 18... Bxa2+ {[%clk 0:00:19.7]} 19. Ka1
{[%clk 0:02:42.5]} 19... Bb3 {[%clk 0:00:19.6]} 20. Rd7 {[%clk 0:02:25.3]} 20...
Rc8 {[%clk 0:00:17.7]} 21. Ne2 {[%clk 0:02:21.3]} 21... a5 {[%clk 0:00:17]} 22.
Nc3 {[%clk 0:02:20.1]} 22... a4 {[%clk 0:00:10.9]} 23. Bxe7 {[%clk 0:02:16.9]}
23... a3 {[%clk 0:00:10.5]} 24. Bxb4 {[%clk 0:02:12]} 24... Re8 {[%clk
0:00:08.5]} 25. Bb5 {[%clk 0:02:10.6]} 25... Ra8 {[%clk 0:00:01.9]} 26. bxa3
{[%clk 0:02:07.9]} 1-0

[Event "Late-Titled-Tuesday-Blitz-February-20-2024"]
[Site "Chess.com"]
[Date "2024.02.20"]
[Round "3"]
[White "NowInChess"]
[Black "el008"]
[Result "0-1"]
[WhiteElo "2296"]
[BlackElo "2549"]
[TimeControl "180+1"]
[EndTime "14:24:56 PST"]
[Termination "el008 won by checkmate"]

1. e4 {[%clk 0:03:00.9]} 1... e6 {[%clk 0:03:00.9]} 2. d3 {[%clk 0:03:00.2]}
2... d5 {[%clk 0:02:59.6]} 3. Nd2 {[%clk 0:03:00.4]} 3... Nf6 {[%clk 0:03:00.1]}
4. Ngf3 {[%clk 0:03:00.3]} 4... c5 {[%clk 0:02:59.7]} 5. g3 {[%clk 0:02:59.8]}
5... Nc6 {[%clk 0:03:00.4]} 6. Bg2 {[%clk 0:02:59.9]} 6... g6 {[%clk 0:03:00.5]}
7. O-O {[%clk 0:02:59.8]} 7... Bg7 {[%clk 0:03:01.1]} 8. Re1 {[%clk 0:02:59.5]}
8... O-O {[%clk 0:03:01.8]} 9. c3 {[%clk 0:02:59.2]} 9... dxe4 {[%clk
0:03:01.3]} 10. dxe4 {[%clk 0:02:58.9]} 10... Qe7 {[%clk 0:02:54.3]} 11. e5
{[%clk 0:02:36.3]} 11... Ng4 {[%clk 0:02:52.3]} 12. Nc4 {[%clk 0:02:32.4]} 12...
Rd8 {[%clk 0:02:51.1]} 13. Qa4 {[%clk 0:02:14.8]} 13... Qc7 {[%clk 0:02:51.4]}
14. Bf4 {[%clk 0:02:01.4]} 14... a6 {[%clk 0:02:47.6]} 15. Nd6 {[%clk
0:01:42.4]} 15... Ncxe5 {[%clk 0:02:38.6]} 16. Nxc8 {[%clk 0:01:35.1]} 16...
Raxc8 {[%clk 0:02:34.2]} 17. h3 {[%clk 0:01:18.6]} 17... Nxf3+ {[%clk
0:02:31.2]} 18. Bxf3 {[%clk 0:01:18.6]} 18... Ne5 {[%clk 0:02:31.9]} 19. Bxe5
{[%clk 0:01:12.5]} 19... Bxe5 {[%clk 0:02:32.8]} 20. Qe4 {[%clk 0:01:12.1]}
20... Bf6 {[%clk 0:02:21.4]} 21. Qxb7 {[%clk 0:01:11]} 21... Qa5 {[%clk
0:02:21.1]} 22. Qe4 {[%clk 0:00:51.8]} 22... Rd2 {[%clk 0:02:20.9]} 23. Re2
{[%clk 0:00:50.7]} 23... Rcd8 {[%clk 0:02:20.3]} 24. Kg2 {[%clk 0:00:47.2]}
24... Qb6 {[%clk 0:02:20]} 25. b3 {[%clk 0:00:44.6]} 25... Bxc3 {[%clk
0:02:19.7]} 26. Rc1 {[%clk 0:00:24.7]} 26... Bf6 {[%clk 0:02:20]} 27. Rxd2
{[%clk 0:00:22.2]} 27... Rxd2 {[%clk 0:02:20.9]} 28. Qf4 {[%clk 0:00:22.1]}
28... Qd8 {[%clk 0:02:15.6]} 29. Rxc5 {[%clk 0:00:21]} 29... Bd4 {[%clk
0:02:16]} 30. Rc7 {[%clk 0:00:18.5]} 30... Rxf2+ {[%clk 0:02:15.8]} 31. Kh1
{[%clk 0:00:17.9]} 31... Bf6 {[%clk 0:02:12.8]} 32. Rb7 {[%clk 0:00:12]} 32...
Qd3 {[%clk 0:02:11.6]} 33. Qxf6 {[%clk 0:00:03.7]} 33... Qf1# {[%clk 0:02:11.4]}
0-1

[Event "Late-Titled-Tuesday-Blitz-February-20-2024"]
[Site "Chess.com"]
[Date "2024.02.20"]
[Round "3"]
[White "SHIVACalypso"]
[Black "Antipov_Mikhail_Al"]
[Result "0-1"]
[WhiteElo "2495"]
[BlackElo "2952"]
[TimeControl "180+1"]
[EndTime "14:24:57 PST"]
[Termination "Antipov_Mikhail_Al won by checkmate"]

1. c4 {[%clk 0:02:56.7]} 1... c5 {[%clk 0:02:57.9]} 2. Nf3 {[%clk 0:02:55.5]}
2... g6 {[%clk 0:02:57.8]} 3. g3 {[%clk 0:02:54.6]} 3... Bg7 {[%clk 0:02:57.6]}
4. Bg2 {[%clk 0:02:54.7]} 4... d6 {[%clk 0:02:58.2]} 5. O-O {[%clk 0:02:54.2]}
5... Nc6 {[%clk 0:02:57.2]} 6. Nc3 {[%clk 0:02:54.4]} 6... Bf5 {[%clk 0:02:56]}
7. d3 {[%clk 0:02:50.6]} 7... Qd7 {[%clk 0:02:53.4]} 8. a3 {[%clk 0:02:45.9]}
8... Bh3 {[%clk 0:02:50.9]} 9. Rb1 {[%clk 0:02:45.4]} 9... h5 {[%clk 0:02:44.6]}
10. e4 {[%clk 0:02:45.7]} 10... Nd4 {[%clk 0:02:37.7]} 11. Nxd4 {[%clk 0:02:35]}
11... cxd4 {[%clk 0:02:38.6]} 12. Nd5 {[%clk 0:02:35.1]} 12... Bxg2 {[%clk
0:02:23.4]} 13. Kxg2 {[%clk 0:02:34.9]} 13... h4 {[%clk 0:02:23.8]} 14. Qe2
{[%clk 0:02:27.5]} 14... e6 {[%clk 0:02:18.2]} 15. Nb4 {[%clk 0:02:20.1]} 15...
Nf6 {[%clk 0:02:12.1]} 16. Nc2 {[%clk 0:02:19.9]} 16... e5 {[%clk 0:02:11.7]}
17. Bg5 {[%clk 0:01:28.2]} 17... hxg3 {[%clk 0:02:03.5]} 18. fxg3 {[%clk
0:01:26.5]} 18... Qh3+ {[%clk 0:02:02.6]} 19. Kg1 {[%clk 0:01:26]} 19... Ng4
{[%clk 0:02:02.4]} 20. Bh4 {[%clk 0:01:13.3]} 20... f6 {[%clk 0:01:26.6]} 21.
Ne1 {[%clk 0:00:41.9]} 21... Bh6 {[%clk 0:01:16.8]} 22. Ng2 {[%clk 0:00:38.6]}
22... Qxh2# {[%clk 0:01:16.3]} 0-1

[Event "Late-Titled-Tuesday-Blitz-February-20-2024"]
[Site "Chess.com"]
[Date "2024.02.20"]
[Round "3"]
[White "ElDivis"]
[Black "expii"]
[Result "1-0"]
[WhiteElo "2421"]
[BlackElo "2165"]
[TimeControl "180+1"]
[EndTime "14:24:59 PST"]
[Termination "ElDivis won by resignation"]

1. e4 {[%clk 0:02:59.4]} 1... c5 {[%clk 0:02:58.9]} 2. Nf3 {[%clk 0:02:59.3]}
2... d6 {[%clk 0:02:58.8]} 3. d4 {[%clk 0:02:59.2]} 3... cxd4 {[%clk 0:02:59.7]}
4. Nxd4 {[%clk 0:02:59.4]} 4... Nf6 {[%clk 0:03:00.3]} 5. Nc3 {[%clk 0:02:59.9]}
5... g6 {[%clk 0:03:00.8]} 6. Be3 {[%clk 0:02:59.4]} 6... Bg7 {[%clk 0:03:01.4]}
7. f3 {[%clk 0:02:59.9]} 7... O-O {[%clk 0:03:01.9]} 8. Qd2 {[%clk 0:03:00.5]}
8... Nc6 {[%clk 0:03:02.4]} 9. O-O-O {[%clk 0:02:59.2]} 9... d5 {[%clk
0:03:02.4]} 10. Nxc6 {[%clk 0:02:59.3]} 10... bxc6 {[%clk 0:03:02.7]} 11. Bc4
{[%clk 0:02:59.3]} 11... e6 {[%clk 0:02:49.7]} 12. Bb3 {[%clk 0:02:55.8]} 12...
Nd7 {[%clk 0:02:46.8]} 13. h4 {[%clk 0:02:51.7]} 13... a5 {[%clk 0:02:32.1]} 14.
h5 {[%clk 0:02:51]} 14... a4 {[%clk 0:02:16.8]} 15. Nxa4 {[%clk 0:02:45.1]}
15... c5 {[%clk 0:02:10.7]} 16. Nxc5 {[%clk 0:02:38.1]} 16... Nxc5 {[%clk
0:02:05.1]} 17. Bxc5 {[%clk 0:02:38]} 17... Re8 {[%clk 0:02:02.7]} 18. hxg6
{[%clk 0:02:35.6]} 18... hxg6 {[%clk 0:01:59]} 19. exd5 {[%clk 0:02:25.8]} 19...
exd5 {[%clk 0:01:51.2]} 20. Kb1 {[%clk 0:02:11.4]} 20... Bf5 {[%clk 0:01:45.8]}
21. g4 {[%clk 0:01:46.8]} 21... Qf6 {[%clk 0:01:11.9]} 22. Bd4 {[%clk
0:01:39.9]} 22... Qxd4 {[%clk 0:01:00.6]} 23. Qxd4 {[%clk 0:01:40.8]} 23... Bxd4
{[%clk 0:01:00]} 24. gxf5 {[%clk 0:01:38.5]} 24... Bf6 {[%clk 0:00:53.1]} 25.
fxg6 {[%clk 0:01:38.8]} 25... Rad8 {[%clk 0:00:53.2]} 26. gxf7+ {[%clk 0:01:38]}
26... Kxf7 {[%clk 0:00:54.1]} 27. Bxd5+ {[%clk 0:01:32.6]} 27... Kg7 {[%clk
0:00:53.3]} 28. Rdg1+ {[%clk 0:01:30.4]} 28... Kf8 {[%clk 0:00:47]} 29. Rg8+
{[%clk 0:01:26.8]} 29... Ke7 {[%clk 0:00:46.1]} 30. Re1+ {[%clk 0:01:24.9]}
30... Kd7 {[%clk 0:00:45.6]} 31. Rgxe8 {[%clk 0:01:24.2]} 31... Rxe8 {[%clk
0:00:46.5]} 32. Bc6+ {[%clk 0:01:23.3]} 1-0

[Event "Late-Titled-Tuesday-Blitz-February-20-2024"]
[Site "Chess.com"]
[Date "2024.02.20"]
[Round "3"]
[White "Felix-Rose"]
[Black "noblerone"]
[Result "0-1"]
[WhiteElo "2265"]
[BlackElo "2506"]
[TimeControl "180+1"]
[EndTime "14:25:01 PST"]
[Termination "noblerone won by resignation"]

1. e4 {[%clk 0:03:00.3]} 1... c5 {[%clk 0:02:47.7]} 2. Nf3 {[%clk 0:03:00.2]}
2... e6 {[%clk 0:02:47.5]} 3. d4 {[%clk 0:03:00.5]} 3... cxd4 {[%clk 0:02:48.4]}
4. Nxd4 {[%clk 0:03:00.7]} 4... Qb6 {[%clk 0:02:49]} 5. Nc3 {[%clk 0:02:39.3]}
5... Bc5 {[%clk 0:02:47.2]} 6. Na4 {[%clk 0:02:09.7]} 6... Qa5+ {[%clk 0:02:47]}
7. c3 {[%clk 0:02:08.3]} 7... Bxd4 {[%clk 0:02:46.4]} 8. Qxd4 {[%clk 0:02:08]}
8... Nf6 {[%clk 0:02:46.9]} 9. Qc4 {[%clk 0:01:03.4]} 9... Nc6 {[%clk 0:02:32]}
10. Nc5 {[%clk 0:00:39.9]} 10... O-O {[%clk 0:02:04]} 11. Nb3 {[%clk 0:00:37.1]}
11... Qc7 {[%clk 0:02:01]} 12. Be2 {[%clk 0:00:33.8]} 12... d5 {[%clk
0:02:00.9]} 13. exd5 {[%clk 0:00:34]} 13... exd5 {[%clk 0:02:01.2]} 14. Qh4
{[%clk 0:00:34.3]} 14... Bf5 {[%clk 0:01:58]} 15. Bg5 {[%clk 0:00:33.9]} 15...
Ne4 {[%clk 0:01:57.9]} 16. O-O {[%clk 0:00:30.5]} 16... Rfe8 {[%clk 0:01:27.6]}
17. Bf4 {[%clk 0:00:30.5]} 17... Qb6 {[%clk 0:01:24.8]} 18. Be3 {[%clk
0:00:27.5]} 18... Qd8 {[%clk 0:01:24.2]} 19. Rad1 {[%clk 0:00:26.3]} 19... Qxh4
{[%clk 0:01:23.4]} 0-1

[Event "Late-Titled-Tuesday-Blitz-February-20-2024"]
[Site "Chess.com"]
[Date "2024.02.20"]
[Round "3"]
[White "Polish_fighter3000"]
[Black "BardArtem"]
[Result "1-0"]
[WhiteElo "3069"]
[BlackElo "2767"]
[TimeControl "180+1"]
[EndTime "14:25:05 PST"]
[Termination "Polish_fighter3000 won by resignation"]

1. Nf3 {[%clk 0:03:00.9]} 1... d5 {[%clk 0:02:59]} 2. g3 {[%clk 0:03:01.2]} 2...
Nf6 {[%clk 0:02:59.4]} 3. Bg2 {[%clk 0:03:01.3]} 3... Nbd7 {[%clk 0:02:59.8]} 4.
d4 {[%clk 0:02:58.3]} 4... e6 {[%clk 0:03:00.3]} 5. c4 {[%clk 0:02:54.3]} 5...
dxc4 {[%clk 0:02:59.4]} 6. O-O {[%clk 0:02:54.3]} 6... c6 {[%clk 0:02:59.5]} 7.
a4 {[%clk 0:02:53.5]} 7... a5 {[%clk 0:02:59.6]} 8. Nc3 {[%clk 0:02:46.4]} 8...
Bb4 {[%clk 0:02:58.6]} 9. Qc2 {[%clk 0:02:44.4]} 9... O-O {[%clk 0:02:55.6]} 10.
Rd1 {[%clk 0:02:42.6]} 10... h6 {[%clk 0:02:49.3]} 11. Na2 {[%clk 0:02:34.4]}
11... Nb6 {[%clk 0:02:34.1]} 12. Ne5 {[%clk 0:02:34.3]} 12... Be7 {[%clk
0:02:19.7]} 13. e4 {[%clk 0:02:16.8]} 13... Re8 {[%clk 0:02:13.4]} 14. Be3
{[%clk 0:02:15.7]} 14... Bf8 {[%clk 0:02:09.4]} 15. h3 {[%clk 0:02:15.1]} 15...
Qc7 {[%clk 0:02:02.7]} 16. f4 {[%clk 0:02:05.8]} 16... c5 {[%clk 0:01:55.6]} 17.
Nc3 {[%clk 0:02:04.1]} 17... cxd4 {[%clk 0:01:53.3]} 18. Nb5 {[%clk 0:02:04.3]}
18... Qb8 {[%clk 0:01:46.4]} 19. Bxd4 {[%clk 0:02:04.1]} 19... Nfd7 {[%clk
0:01:39.2]} 20. Nxc4 {[%clk 0:01:44.3]} 20... Nxc4 {[%clk 0:01:40.1]} 21. Qxc4
{[%clk 0:01:44.9]} 21... Ra6 {[%clk 0:01:34.3]} 22. e5 {[%clk 0:01:34.3]} 22...
Nb6 {[%clk 0:00:51.7]} 23. Qc7 {[%clk 0:01:33.5]} 23... Nd7 {[%clk 0:00:32.1]}
24. Qxb8 {[%clk 0:01:30.9]} 24... Nxb8 {[%clk 0:00:33]} 25. Nc7 {[%clk
0:01:31.2]} 25... Rd8 {[%clk 0:00:26.6]} 26. Nxa6 {[%clk 0:01:30.2]} 26... Nxa6
{[%clk 0:00:27.5]} 27. Bb6 {[%clk 0:01:30.3]} 1-0

[Event "Late-Titled-Tuesday-Blitz-February-20-2024"]
[Site "Chess.com"]
[Date "2024.02.20"]
[Round "3"]
[White "vrekhson"]
[Black "Bryanl106"]
[Result "0-1"]
[WhiteElo "2243"]
[BlackElo "2527"]
[TimeControl "180+1"]
[EndTime "14:25:06 PST"]
[Termination "Bryanl106 won by resignation"]

1. e4 {[%clk 0:03:00.9]} 1... e5 {[%clk 0:03:00.1]} 2. Nf3 {[%clk 0:02:57.4]}
2... Nc6 {[%clk 0:03:00.3]} 3. Bb5 {[%clk 0:02:46.1]} 3... a6 {[%clk 0:02:58.8]}
4. Ba4 {[%clk 0:02:43.8]} 4... Nf6 {[%clk 0:02:55.1]} 5. d3 {[%clk 0:02:43.9]}
5... b5 {[%clk 0:02:54.5]} 6. Bb3 {[%clk 0:02:42.4]} 6... Be7 {[%clk 0:02:55.1]}
7. h3 {[%clk 0:02:35.2]} 7... d6 {[%clk 0:02:54.1]} 8. O-O {[%clk 0:02:33.7]}
8... O-O {[%clk 0:02:51.2]} 9. c3 {[%clk 0:02:33.4]} 9... Na5 {[%clk 0:02:47.7]}
10. Bc2 {[%clk 0:02:30]} 10... c5 {[%clk 0:02:46.8]} 11. a4 {[%clk 0:02:29.2]}
11... b4 {[%clk 0:02:44.4]} 12. Nbd2 {[%clk 0:02:28]} 12... Nc6 {[%clk
0:02:41.3]} 13. Re1 {[%clk 0:02:27.4]} 13... h6 {[%clk 0:02:40.1]} 14. Nf1
{[%clk 0:02:27.4]} 14... Re8 {[%clk 0:02:37.6]} 15. Ng3 {[%clk 0:02:27.3]} 15...
Bf8 {[%clk 0:02:36.9]} 16. d4 {[%clk 0:02:23.2]} 16... bxc3 {[%clk 0:02:33.6]}
17. bxc3 {[%clk 0:02:22.5]} 17... Rb8 {[%clk 0:02:30.5]} 18. dxc5 {[%clk
0:02:18.3]} 18... dxc5 {[%clk 0:02:31.4]} 19. Be3 {[%clk 0:02:15.7]} 19... Be6
{[%clk 0:02:29]} 20. Qe2 {[%clk 0:02:10.1]} 20... Rb2 {[%clk 0:02:25.7]} 21. Bc1
{[%clk 0:02:03.1]} 21... Rb8 {[%clk 0:02:23.9]} 22. Qxa6 {[%clk 0:01:58.9]}
22... Qc7 {[%clk 0:02:21.8]} 23. Qe2 {[%clk 0:01:49.8]} 23... c4 {[%clk
0:02:20.9]} 24. Nf5 {[%clk 0:01:39.7]} 24... Bxf5 {[%clk 0:02:14]} 25. exf5
{[%clk 0:01:40.6]} 25... e4 {[%clk 0:02:14.2]} 26. Nd2 {[%clk 0:01:37.3]} 26...
e3 {[%clk 0:02:03.7]} 27. fxe3 {[%clk 0:01:33]} 27... Nd5 {[%clk 0:02:01]} 28.
Nf3 {[%clk 0:01:21.9]} 28... Na5 {[%clk 0:01:56.2]} 29. e4 {[%clk 0:01:15.4]}
29... Nxc3 {[%clk 0:01:53.8]} 30. Qd2 {[%clk 0:01:09.3]} 30... Bb4 {[%clk
0:01:50]} 31. f6 {[%clk 0:01:04.6]} 31... Nxe4 {[%clk 0:01:47.9]} 32. Qd5 {[%clk
0:01:01.4]} 32... Nxf6 {[%clk 0:01:46.9]} 33. Rxe8+ {[%clk 0:00:56.6]} 33...
Rxe8 {[%clk 0:01:46.8]} 34. Qf5 {[%clk 0:00:52.3]} 34... Nb3 {[%clk 0:01:44.5]}
35. Bxh6 {[%clk 0:00:49.2]} 35... Qc5+ {[%clk 0:01:43.8]} 36. Qxc5 {[%clk
0:00:46.4]} 36... Bxc5+ {[%clk 0:01:44.7]} 37. Kh1 {[%clk 0:00:40.5]} 37... Nxa1
{[%clk 0:01:44.9]} 0-1

[Event "Late-Titled-Tuesday-Blitz-February-20-2024"]
[Site "Chess.com"]
[Date "2024.02.20"]
[Round "3"]
[White "kylelancman"]
[Black "AlexeiShirov"]
[Result "0-1"]
[WhiteElo "2491"]
[BlackElo "2851"]
[TimeControl "180+1"]
[EndTime "14:25:07 PST"]
[Termination "AlexeiShirov won by checkmate"]

1. e4 {[%clk 0:03:00.9]} 1... e5 {[%clk 0:02:59.7]} 2. Nf3 {[%clk 0:03:00.8]}
2... Nc6 {[%clk 0:03:00.3]} 3. Nc3 {[%clk 0:03:00.9]} 3... g6 {[%clk 0:02:58.3]}
4. Bc4 {[%clk 0:02:56.6]} 4... Bg7 {[%clk 0:02:57.6]} 5. a3 {[%clk 0:02:56.2]}
5... Nf6 {[%clk 0:02:52.5]} 6. d3 {[%clk 0:02:56.1]} 6... d6 {[%clk 0:02:49.2]}
7. h3 {[%clk 0:02:55.9]} 7... Be6 {[%clk 0:02:47.4]} 8. O-O {[%clk 0:02:53.8]}
8... Bxc4 {[%clk 0:02:43.5]} 9. dxc4 {[%clk 0:02:53.3]} 9... Nd7 {[%clk
0:02:36.5]} 10. Be3 {[%clk 0:02:45.9]} 10... O-O {[%clk 0:02:35.6]} 11. Nd5
{[%clk 0:02:43]} 11... h6 {[%clk 0:02:22.9]} 12. Qd2 {[%clk 0:02:37.8]} 12...
Kh7 {[%clk 0:02:22.4]} 13. b3 {[%clk 0:02:33.3]} 13... f5 {[%clk 0:02:20.1]} 14.
exf5 {[%clk 0:02:31.8]} 14... Rxf5 {[%clk 0:02:19.8]} 15. Rae1 {[%clk 0:02:12]}
15... Rxf3 {[%clk 0:02:09.6]} 16. gxf3 {[%clk 0:02:12.9]} 16... Qh4 {[%clk
0:02:08]} 17. Kg2 {[%clk 0:02:02.9]} 17... Rf8 {[%clk 0:02:04.1]} 18. Qd3 {[%clk
0:02:00.8]} 18... Rxf3 {[%clk 0:01:59.4]} 19. Kxf3 {[%clk 0:01:26]} 19... e4+
{[%clk 0:01:58.7]} 20. Qxe4 {[%clk 0:01:24.1]} 20... Nce5+ {[%clk 0:01:55.6]}
21. Qxe5 {[%clk 0:01:21.6]} 21... Nxe5+ {[%clk 0:01:55]} 22. Ke2 {[%clk
0:01:21.8]} 22... Qe4 {[%clk 0:01:29.8]} 23. Nb4 {[%clk 0:01:09.5]} 23... Nf3
{[%clk 0:01:18]} 24. Rd1 {[%clk 0:01:09.2]} 24... Bc3 {[%clk 0:01:09.1]} 25. Rd3
{[%clk 0:00:59.1]} 25... Nd4+ {[%clk 0:01:08.6]} 26. Kd1 {[%clk 0:00:57.5]}
26... Qg2 {[%clk 0:01:08.2]} 27. Rxc3 {[%clk 0:00:46.6]} 27... Qxf1+ {[%clk
0:01:07.7]} 28. Kd2 {[%clk 0:00:47.2]} 28... Nf3# {[%clk 0:01:07.6]} 0-1